[Event "SVK Extraliga 2019-20"]
[Site "Slovakia"]
[Date "2019.11.24"]
[Round "4.5"]
[White "Petrik, Tomas"]
[Black "Repkova, Eva"]
[Result "0-1"]
[ECO "E06"]
[WhiteElo "2462"]
[BlackElo "2304"]
[Annotator "ChessBase"]
[PlyCount "104"]
[EventDate "2019.10.19"]
[EventType "team-tourn"]
[EventCountry "SVK"]
[SourceTitle "playchess.com"]
[Source "ChessBase"]
[SourceQuality "1"]
[WhiteTeam "Zilina"]
[BlackTeam "Košice"]
[TimeControl "40/5400+30:1800+30"]

1. d4 {[%emt 0:00:00]} d5 {[%emt 0:00:00]} 2. Nf3 {[%emt 0:00:36]} Nf6 {[%emt 0:00:08]} 3. c4 {[%emt 0:00:27]} e6 {[%emt 0:00:05]} 4. g3 {[%emt 0:00:37]} Be7 {[%emt 0:00:09]} 5. Bg2 {[%emt 0:00:31]} O-O {[%emt 0:00:07]} 6. O-O {[%emt 0:00:45]} dxc4 {[%emt 0:00:06]} 7. Qc2 {[%emt 0:01:02]} a6 {[%emt 0:00:07]} 8. Qxc4 {[%emt 0:01:07]} b5 {[%emt 0:00:12]} 9. Qc2 {[%emt 0:00:07]} Bb7 {[%emt 0:00:06]} 10. Bg5 {[%emt 0:06:41]} Nbd7 {[%emt 0:05:04]} 11. Bxf6 {[%emt 0:08:14]} Nxf6 {[%emt 0:04:06]} 12. Nbd2 {[%emt 0:01:00]} Rc8 {[%emt 0:03:00]} 13. Nb3 {[%emt 0:04:18]} Be4 {[%emt 0:01:20]} 14. Qc3 {[%emt 0:29:59]} Nd5 {[%emt 0:08:02]} 15. Qc6 {[%emt 0:13:25]} Qd6 {[%emt 0:02:55]} 16. Ne5 {[%emt 0:15:27]} Bxg2 {[%emt 0:00:54]} 17. Kxg2 {[%emt 0:00:05]} f6 {[%emt 0:23:50]} 18. Qxd6 {[%emt 0:00:19]} cxd6 {[%emt 0:00:07]} 19. Nd3 {[%emt 0:00:06]} Rc4 {[%emt 0:01:00]} 20. Rfc1 {[%emt 0:03:14]} Rfc8 {[%emt 0:00:04]} 21. Na5 {[%emt 0:04:15]} Rc2 {[%emt 0:00:01]} 22. Kf3 {[%emt 0:01:54]} Nb4 {[%emt 0:02:59]} 23. Nb3 {[%emt 0:05:46]} Nxd3 {[%emt 0:00:42]} 24. exd3 {[%emt 0:00:02]} Kf7 {[%emt 0:04:41]} 25. Rab1 {[%emt 0:00:08]} Bd8 {[%emt 0:01:07]} 26. Rxc2 {[%emt 0:02:01]} Rxc2 {[%emt 0:00:13]} 27. Na1 {[%emt 0:00:20]} Rc8 {[%emt 0:00:44]} 28. Nb3 {[%emt 0:00:03]} Bb6 {[%emt 0:00:18]} 29. d5 {[%emt 0:00:13]} Rc2 {[%emt 0:10:01]} 30. dxe6+ {[%emt 0:00:03]} Ke7 {[%emt 0:00:04]} 31. d4 {[%emt 0:02:14]} Kxe6 {[%emt 0:00:14]} 32. Re1+ {[%emt 0:00:30]} Kd5 {[%emt 0:00:08]} 33. Re7 {[%emt 0:00:28]} a5 {[%emt 0:02:10]} 34. Re2 {[%emt 0:00:23]} Rxe2 {[%emt 0:02:55]} 35. Kxe2 {[%emt 0:00:01]} a4 {[%emt 0:01:53]} 36. Nc1 {[%emt 0:01:02]} Kxd4 {[%emt 0:01:53]} 37. Nd3 {[%emt 0:00:30]} Kc4 {[%emt 0:00:18]} 38. Kd2 {[%emt 0:00:36]} b4 {[%emt 0:00:35]} 39. Kc2 {[%emt 0:00:30]} b3+ {[%emt 0:02:54]} 40. axb3+ {[%emt 0:00:06]} axb3+ {[%emt 0:00:02]} 41. Kd2 {[%emt 0:30:52]} f5 {[%emt 0:32:07]} 42. h4 {[%emt 0:00:00]} f4 {[%emt 0:00:00]} 43. gxf4 {[%emt 0:00:00]} h5 {[%emt 0:00:00]} 44. f5 {[%emt 0:00:00]} Bd4 {[%emt 0:00:00]} 45. f3 {[%emt 0:02:01]} Bf6 {[%emt 0:00:00]} 46. Nf4 {[%emt 0:00:05]} Bxb2 {[%emt 0:00:00]} 47. Nxh5 {[%emt 0:00:03]} d5 {[%emt 0:00:00]} 48. f6 {[%emt 0:01:19]} gxf6 {[%emt 0:00:00]} 49. Ng3 {[%emt 0:00:33]} Be5 {[%emt 0:00:00]} 50. Ne2 {[%emt 0:00:03]} d4 {[%emt 0:00:00]} 51. f4 {[%emt 0:00:57]} d3 {[%emt 0:00:00]} 52. fxe5 {[%emt 0:00:23]} dxe2 {[%emt 0:00:00]} 0-1

[Event "SVK Extraliga 2019-20"]
[Site "Slovakia"]
[Date "2019.11.24"]
[Round "4.5"]
[White "Mikrut, Dariusz"]
[Black "Lintner, Igor"]
[Result "1-0"]
[ECO "E15"]
[WhiteElo "2382"]
[BlackElo "2187"]
[Annotator "NA RC"]
[PlyCount "45"]
[EventDate "2019.10.19"]
[EventType "team-tourn"]
[EventCountry "SVK"]
[SourceTitle "playchess.com"]
[Source "ChessBase"]
[SourceQuality "1"]
[WhiteTeam "Prakovce"]
[BlackTeam "Osuske"]
[TimeControl "40/5400+30:1800+30"]

1. d4 {[%emt 0:00:00]} Nf6 {[%emt 0:00:16]} 2. Nf3 {[%emt 0:00:00]} e6 {[%emt 0:00:35]} 3. g3 {[%emt 0:00:00]} c5 {[%emt 0:00:54]} 4. c4 {[%emt 0:00:00]} b6 {[%emt 0:00:59]} 5. Bg2 {[%emt 0:00:00]} Bb7 {[%emt 0:00:07]} 6. d5 {[%emt 0:00:03]} exd5 {[%emt 0:03:02]} 7. Nh4 {[%emt 0:00:13]} g6 {[%emt 0:02:12]} 8. Nc3 {[%emt 0:02:44]} Bg7 {[%emt 0:01:22]} 9. cxd5 {[%emt 0:01:47]} d6 {[%emt 0:00:19]} 10. Qa4+ {[%emt 0:02:39]} Qd7 {[%emt 0:05:44]} 11. Qxd7+ {[%emt 0:00:25]} Nbxd7 {[%emt 0:00:12]} 12. Bf4 {[%emt 0:02:00]} Ke7 $16 {[%emt 0:02:17]} (12... Ne5 $11) 13. Bxd6+ {[%emt 0:07:40]} Kxd6 {[%emt 0:00:01]} 14. Nb5+ {[%emt 0:00:02]} Ke7 {[%emt 0:00:01]} 15. d6+ {[%emt 0:00:12]} Ke6 {[%emt 0:09:52]} 16. Bxb7 {[%emt 0:06:18]} Rab8 {[%emt 0:01:08]} 17. Bg2 {[%emt 0:04:16]} Ne8 {[%emt 0:14:13]} 18. O-O-O {[%emt 0:02:24]} Bh6+ {[%emt 0:15:18]} 19. Kb1 {[%emt 0:01:27]} Bg5 {[%emt 0:00:08]} 20. Nf3 {[%emt 0:03:07]} Bd8 {[%emt 0:01:02]} 21. Bh3+ {[%emt 0:00:25]} f5 {[%emt 0:00:09]} 22. e4 {[%emt 0:00:26]} Kf6 {[%emt 0:06:56]} 23. Rhe1 {[%emt 0:00:34]} 1-0

[Event "SVK Extraliga 2019-20"]
[Site "Slovakia"]
[Date "2019.11.24"]
[Round "4.5"]
[White "Plachetka, Jan"]
[Black "Havlicek, Libor"]
[Result "1/2-1/2"]
[ECO "E11"]
[WhiteElo "2298"]
[BlackElo "2302"]
[Annotator "NA"]
[PlyCount "90"]
[EventDate "2019.10.19"]
[EventType "team-tourn"]
[EventCountry "SVK"]
[SourceTitle "playchess.com"]
[Source "ChessBase"]
[SourceQuality "1"]
[WhiteTeam "Liptovska"]
[BlackTeam "Slovan"]
[TimeControl "40/5400+30:1800+30"]

1. d4 {[%emt 0:00:42]} Nf6 {[%emt 0:00:45]} 2. Nf3 {[%emt 0:00:24]} e6 {[%emt 0:03:46]} 3. c4 {[%emt 0:00:50]} Bb4+ {[%emt 0:01:32]} 4. Bd2 {[%emt 0:11:00]} Be7 {[%emt 0:01:25]} 5. Nc3 {[%emt 0:00:46]} c5 {[%emt 0:01:03]} 6. d5 {[%emt 0:00:58]} exd5 {[%emt 0:00:05]} 7. cxd5 {[%emt 0:00:04]} d6 {[%emt 0:00:07]} 8. e4 {[%emt 0:01:25]} Bg4 {[%emt 0:03:30]} 9. Be2 {[%emt 0:00:17]} O-O {[%emt 0:00:22]} 10. O-O {[%emt 0:00:14]} Nbd7 {[%emt 0:03:05]} 11. h3 {[%emt 0:02:17]} Bxf3 {[%emt 0:00:17]} 12. Bxf3 {[%emt 0:00:02]} a6 {[%emt 0:01:07]} 13. a4 {[%emt 0:00:17]} c4 {[%emt 0:02:44]} 14. b4 {[%emt 0:03:57]} cxb3 {[%emt 0:07:47]} 15. Qxb3 {[%emt 0:07:36]} Nc5 {[%emt 0:00:37]} 16. Qb1 {[%emt 0:03:23]} Nfd7 {[%emt 0:00:07]} 17. Be2 {[%emt 0:03:00]} Bg5 {[%emt 0:00:59]} 18. f4 {[%emt 0:01:15]} Bf6 {[%emt 0:00:04]} 19. Ra3 {[%emt 0:07:49]} Re8 {[%emt 0:00:26]} 20. Bf3 {[%emt 0:04:33]} Rc8 {[%emt 0:01:07]} 21. a5 {[%emt 0:03:17]} b5 {[%emt 0:06:08]} 22. Na2 {[%emt 0:05:56]} Na4 {[%emt 0:03:18]} 23. Be1 {[%emt 0:10:56]} Rc4 {[%emt 0:07:06]} 24. Nb4 {[%emt 0:02:04]} Qxa5 {[%emt 0:07:34]} 25. Nc6 {[%emt 0:02:12]} Qc7 {[%emt 0:00:35]} 26. Ba5 {[%emt 0:08:34]} Bd4+ {[%emt 0:00:54]} 27. Kh1 {[%emt 0:02:02]} Bb6 {[%emt 0:00:07]} 28. Bd2 {[%emt 0:00:41]} Bc5 {[%emt 0:01:02]} 29. Rd3 {[%emt 0:00:38]} Nb8 {[%emt 0:00:58]} 30. e5 {[%emt 0:03:39]} Nb6 {[%emt 0:02:03]} 31. Na5 {[%emt 0:01:10]} Rd4 {[%emt 0:01:38]} 32. Nb3 {[%emt 0:00:43]} Rxd3 {[%emt 0:00:16]} 33. Qxd3 {[%emt 0:00:01]} N8d7 {[%emt 0:02:03]} 34. Ba5 {[%emt 0:04:16]} Qc8 {[%emt 0:13:59]} 35. Bg4 {[%emt 0:01:23]} dxe5 {[%emt 0:04:28]} 36. fxe5 {[%emt 0:01:50]} Nxe5 {[%emt 0:00:28]} 37. Bxc8 {[%emt 0:01:03]} Nxd3 {[%emt 0:00:05]} 38. Bxa6 {[%emt 0:00:04]} Rb8 {[%emt 0:09:14]} 39. Bxb5 {[%emt 0:00:44]} Nf2+ {[%emt 0:02:24]} 40. Kg1 {[%emt 0:03:12]} Nxd5 {[%emt 0:01:07]} 41. Bc4 {[%emt 0:32:44]} Rxb3 {[%emt 0:15:49]} 42. Bxb3 {[%emt 0:00:00]} Ne4+ {[%emt 0:00:26]} 43. Kh2 {[%emt 0:00:00]} Bd6+ {[%emt 0:00:04]} 44. Kg1 {[%emt 0:00:00]} Bc5+ {[%emt 0:00:04]} 45. Kh2 {[%emt 0:00:00]} Bd6+ {[%emt 0:00:03]} 1/2-1/2

[Event "SVK Extraliga 2019-20"]
[Site "Slovakia"]
[Date "2019.11.24"]
[Round "4.5"]
[White "Jablonicky, Martin"]
[Black "Csonka, Attila Istvan"]
[Result "0-1"]
[ECO "B22"]
[WhiteElo "2250"]
[BlackElo "2355"]
[Annotator "NA"]
[PlyCount "52"]
[EventDate "2019.10.19"]
[EventType "team-tourn"]
[EventCountry "SVK"]
[SourceTitle "playchess.com"]
[Source "ChessBase"]
[SourceQuality "1"]
[WhiteTeam "Modra"]
[BlackTeam "Streda"]
[TimeControl "40/5400+30:1800+30"]

1. e4 {[%emt 0:00:00]} c5 {[%emt 0:00:00]} 2. c3 {[%emt 0:00:00]} Nf6 {[%emt 0:00:00]} 3. e5 {[%emt 0:00:00]} Nd5 {[%emt 0:00:00]} 4. Bc4 {[%emt 0:00:29]} e6 {[%emt 0:00:00]} 5. d4 {[%emt 0:00:04]} cxd4 {[%emt 0:00:05]} 6. Bxd5 {[%emt 0:01:50]} exd5 {[%emt 0:00:17]} 7. Qxd4 {[%emt 0:00:05]} Nc6 {[%emt 0:01:05]} 8. Qxd5 {[%emt 0:00:06]} d6 {[%emt 0:00:16]} 9. exd6 {[%emt 0:01:11]} Bxd6 {[%emt 0:00:58]} 10. Qe4+ {[%emt 0:05:30]} Be6 {[%emt 0:01:07]} 11. Nf3 {[%emt 0:00:05]} Qd7 {[%emt 0:02:01]} 12. O-O {[%emt 0:06:37]} O-O-O {[%emt 0:00:45]} 13. Bf4 {[%emt 0:01:30]} Bf5 {[%emt 0:01:03]} 14. Qa4 {[%emt 0:01:58]} Bxf4 {[%emt 0:05:42]} 15. Qxf4 {[%emt 0:00:11]} g5 {[%emt 0:00:30]} 16. Qg3 {[%emt 0:08:24]} f6 {[%emt 0:02:33]} 17. Na3 {[%emt 0:06:16]} h5 {[%emt 0:02:14]} 18. Nd4 {[%emt 0:00:04]} h4 {[%emt 0:02:25]} 19. Qf3 {[%emt 0:01:44]} Bg4 {[%emt 0:25:08]} 20. Qxf6 {[%emt 0:03:55]} Rdf8 {[%emt 0:01:41]} 21. Qg6 {[%emt 0:02:33]} h3 {[%emt 0:05:24]} 22. Nxc6 {[%emt 0:12:50]} bxc6 {[%emt 0:02:32]} 23. Nc4 {[%emt 0:02:22]} hxg2 {[%emt 0:01:14]} 24. Rfe1 {[%emt 0:02:01]} Bf3 {[%emt 0:03:55]} 25. Ne5 {[%emt 0:10:59]} Rxh2 {[%emt 0:02:14]} 26. Nxf3 {[%emt 0:00:07]} Rh1+ {[%emt 0:00:04]} 0-1

[Event "SVK Extraliga 2019-20"]
[Site "Slovakia"]
[Date "2019.11.24"]
[Round "4.5"]
[White "Veres, Andrej"]
[Black "Jakab, Bela"]
[Result "1/2-1/2"]
[ECO "D15"]
[WhiteElo "2236"]
[BlackElo "2244"]
[Annotator "NA"]
[PlyCount "103"]
[EventDate "2019.10.19"]
[EventType "team-tourn"]
[EventCountry "SVK"]
[SourceTitle "playchess.com"]
[Source "ChessBase"]
[SourceQuality "1"]
[WhiteTeam "Dubnica"]
[BlackTeam "Podhajska"]
[TimeControl "40/5400+30:1800+30"]

1. d4 {[%emt 0:00:00]} d5 {[%emt 0:00:00]} 2. Nf3 {[%emt 0:00:16]} Nf6 {[%emt 0:00:00]} 3. c4 {[%emt 0:00:27]} c6 {[%emt 0:00:00]} 4. Nc3 {[%emt 0:00:44]} a6 {[%emt 0:00:14]} 5. e3 {[%emt 0:03:47]} b5 {[%emt 0:00:20]} 6. b3 {[%emt 0:01:59]} e6 {[%emt 0:03:43]} 7. Bd3 {[%emt 0:02:38]} Bb4 {[%emt 0:09:48]} 8. Bd2 {[%emt 0:01:32]} O-O {[%emt 0:00:11]} 9. O-O {[%emt 0:03:48]} Nbd7 {[%emt 0:00:54]} 10. Nxd5 {[%emt 0:02:57]} Nxd5 {[%emt 0:02:33]} 11. cxd5 {[%emt 0:00:12]} Bxd2 {[%emt 0:00:09]} 12. dxe6 {[%emt 0:05:04]} Bb4 {[%emt 0:01:59]} 13. exd7 {[%emt 0:00:33]} Qxd7 {[%emt 0:00:06]} 14. Ne5 {[%emt 0:00:47]} Qe6 {[%emt 0:03:00]} 15. Qc2 {[%emt 0:00:39]} Bd6 {[%emt 0:01:47]} 16. f4 {[%emt 0:16:41]} Bxe5 {[%emt 0:06:12]} 17. Bxh7+ {[%emt 0:09:17]} Kh8 {[%emt 0:00:06]} 18. dxe5 {[%emt 0:00:33]} g6 {[%emt 0:09:48]} 19. f5 {[%emt 0:01:14]} Qxe5 {[%emt 0:00:07]} 20. fxg6 {[%emt 0:00:20]} f5 {[%emt 0:00:19]} 21. Qxc6 {[%emt 0:01:25]} Ra7 {[%emt 0:00:38]} 22. Qf3 {[%emt 0:03:16]} Re7 {[%emt 0:00:41]} 23. Rad1 {[%emt 0:04:04]} Rfe8 {[%emt 0:05:46]} 24. Rd4 {[%emt 0:03:09]} Kg7 {[%emt 0:02:06]} 25. Rfd1 {[%emt 0:01:33]} Qc5 {[%emt 0:07:24]} 26. Qd5 {[%emt 0:01:51]} Qa7 {[%emt 0:00:21]} 27. R4d3 {[%emt 0:01:11]} Rxe3 {[%emt 0:05:22]} 28. Qd4+ {[%emt 0:00:02]} Qxd4 {[%emt 0:00:07]} 29. Rxd4 {[%emt 0:00:06]} Re2 {[%emt 0:03:59]} 30. Rd8 {[%emt 0:00:58]} Rxd8 {[%emt 0:01:38]} 31. Rxd8 {[%emt 0:00:02]} Be6 {[%emt 0:00:08]} 32. Re8 {[%emt 0:00:56]} b4 {[%emt 0:04:41]} 33. Bg8 {[%emt 0:04:53]} Bc4 {[%emt 0:00:06]} 34. Rxe2 {[%emt 0:00:20]} Bxe2 {[%emt 0:00:05]} 35. Bc4 {[%emt 0:00:19]} Bxc4 {[%emt 0:00:11]} 36. bxc4 {[%emt 0:00:01]} a5 {[%emt 0:00:08]} 37. c5 {[%emt 0:07:50]} a4 {[%emt 0:01:02]} 38. c6 {[%emt 0:01:37]} b3 {[%emt 0:00:05]} 39. axb3 {[%emt 0:00:51]} axb3 {[%emt 0:00:05]} 40. c7 {[%emt 0:00:06]} b2 {[%emt 0:00:04]} 41. c8=Q {[%emt 0:30:07]} b1=Q+ {[%emt 0:30:06]} 42. Kf2 {[%emt 0:00:06]} Qb2+ {[%emt 0:04:21]} 43. Kf3 {[%emt 0:03:24]} Qa3+ {[%emt 0:00:35]} 44. Kf4 {[%emt 0:01:07]} Qd6+ {[%emt 0:00:21]} 45. Kxf5 {[%emt 0:00:23]} Qxg6+ {[%emt 0:00:05]} 46. Ke5 {[%emt 0:00:43]} Qxg2 {[%emt 0:00:21]} 47. Qd7+ {[%emt 0:00:45]} Kh6 {[%emt 0:00:27]} 48. Qe6+ {[%emt 0:00:48]} Qg6 {[%emt 0:01:37]} 49. Qe7 {[%emt 0:02:57]} Qg5+ {[%emt 0:00:17]} 50. Qxg5+ {[%emt 0:00:24]} Kxg5 {[%emt 0:00:05]} 51. h4+ {[%emt 0:00:03]} Kxh4 {[%emt 0:00:06]} 52. Ke4 1/2-1/2

[Event "SVK Extraliga 2019-20"]
[Site "Slovakia"]
[Date "2019.11.24"]
[Round "4.6"]
[White "Likavsky, Tomas"]
[Black "Bombek, Peter"]
[Result "1-0"]
[ECO "A14"]
[WhiteElo "2423"]
[BlackElo "2151"]
[Annotator "NA"]
[PlyCount "73"]
[EventDate "2019.10.19"]
[EventType "team-tourn"]
[EventCountry "SVK"]
[SourceTitle "playchess.com"]
[Source "ChessBase"]
[SourceQuality "1"]
[WhiteTeam "Podhajska"]
[BlackTeam "Dubnica"]
[TimeControl "40/5400+30:1800+30"]

1. c4 {[%emt 0:00:00]} e6 {[%emt 0:00:00]} 2. Nf3 {[%emt 0:01:35]} d5 {[%emt 0:00:00]} 3. g3 {[%emt 0:00:37]} Nf6 {[%emt 0:00:08]} 4. Bg2 {[%emt 0:00:05]} Be7 {[%emt 0:00:07]} 5. O-O {[%emt 0:01:50]} O-O {[%emt 0:00:27]} 6. d4 {[%emt 0:00:20]} dxc4 {[%emt 0:00:30]} 7. Qc2 {[%emt 0:00:11]} a6 {[%emt 0:00:49]} 8. a4 {[%emt 0:00:25]} Bd7 {[%emt 0:00:58]} 9. Qxc4 {[%emt 0:04:11]} Bc6 {[%emt 0:01:27]} 10. Bf4 {[%emt 0:02:40]} Nbd7 {[%emt 0:03:16]} 11. Nc3 {[%emt 0:03:59]} Nb6 {[%emt 0:01:25]} 12. Qb3 {[%emt 0:01:39]} Nbd5 {[%emt 0:03:39]} 13. Bd2 {[%emt 0:00:41]} Rb8 {[%emt 0:11:23]} 14. a5 {[%emt 0:09:30]} Nb4 {[%emt 0:09:19]} 15. Rfd1 {[%emt 0:15:26]} b6 {[%emt 0:13:06]} 16. Qc4 {[%emt 0:04:09]} bxa5 {[%emt 0:06:34]} 17. Rxa5 {[%emt 0:02:17]} Bxf3 {[%emt 0:01:35]} 18. Bxf3 {[%emt 0:00:06]} c5 {[%emt 0:01:01]} 19. Rxc5 {[%emt 0:01:20]} Bxc5 {[%emt 0:01:53]} 20. dxc5 {[%emt 0:00:04]} Nbd5 {[%emt 0:04:01]} 21. Bf4 {[%emt 0:22:01]} Rb4 {[%emt 0:10:14]} 22. Qxa6 {[%emt 0:00:08]} Qc8 {[%emt 0:00:30]} 23. Qxc8 {[%emt 0:03:21]} Rxc8 {[%emt 0:00:12]} 24. Nxd5 {[%emt 0:05:53]} Nxd5 {[%emt 0:05:11]} 25. Be5 {[%emt 0:02:02]} f6 {[%emt 0:03:41]} 26. Bxd5 {[%emt 0:00:17]} exd5 {[%emt 0:00:23]} 27. Bd4 {[%emt 0:00:07]} Kf7 {[%emt 0:06:02]} 28. e3 {[%emt 0:00:41]} Ra8 {[%emt 0:00:12]} 29. Bc3 {[%emt 0:04:03]} Rc4 {[%emt 0:02:11]} 30. Rxd5 {[%emt 0:00:25]} Ra6 {[%emt 0:04:48]} 31. Kg2 {[%emt 0:09:57]} Ke6 {[%emt 0:00:57]} 32. Rh5 {[%emt 0:00:05]} g6 {[%emt 0:01:29]} 33. Rxh7 {[%emt 0:00:20]} Rxc5 {[%emt 0:00:04]} 34. h4 {[%emt 0:00:43]} g5 {[%emt 0:03:05]} 35. Bxf6 {[%emt 0:01:21]} g4 {[%emt 0:02:10]} 36. Bd4 {[%emt 0:00:27]} Rca5 {[%emt 0:00:57]} 37. Rg7 {[%emt 0:00:16]} 1-0

[Event "SVK Extraliga 2019-20"]
[Site "Slovakia"]
[Date "2019.11.24"]
[Round "4.6"]
[White "Briestensky, Rastislav"]
[Black "Hros, Roman"]
[Result "1/2-1/2"]
[ECO "A56"]
[WhiteElo "2352"]
[BlackElo "2192"]
[Annotator "NA"]
[PlyCount "211"]
[EventDate "2019.10.19"]
[EventType "team-tourn"]
[EventCountry "SVK"]
[SourceTitle "playchess.com"]
[Source "ChessBase"]
[SourceQuality "1"]
[WhiteTeam "Slovan"]
[BlackTeam "Liptovska"]
[TimeControl "40/5400+30:1800+30"]

1. d4 {[%emt 0:01:21]} Nf6 {[%emt 0:00:00]} 2. c4 {[%emt 0:00:24]} c5 {[%emt 0:01:13]} 3. dxc5 {[%emt 0:02:08]} e6 {[%emt 0:11:14]} 4. Nc3 {[%emt 0:00:17]} Bxc5 {[%emt 0:00:40]} 5. a3 {[%emt 0:00:07]} O-O {[%emt 0:03:15]} 6. e3 {[%emt 0:05:52]} d5 {[%emt 0:14:56]} 7. b4 {[%emt 0:05:50]} d4 {[%emt 0:03:52]} 8. Na4 {[%emt 0:09:09]} dxe3 {[%emt 0:01:30]} 9. Qxd8 {[%emt 0:03:30]} exf2+ {[%emt 0:00:06]} 10. Ke2 {[%emt 0:00:07]} fxg1=Q {[%emt 0:14:38]} 11. Rxg1 {[%emt 0:00:25]} Rxd8 {[%emt 0:00:50]} 12. Nxc5 {[%emt 0:00:04]} Nc6 {[%emt 0:03:40]} 13. Nb3 {[%emt 0:04:06]} e5 {[%emt 0:03:45]} 14. Bb2 {[%emt 0:02:57]} Bf5 {[%emt 0:08:56]} 15. h3 {[%emt 0:03:03]} Bc2 {[%emt 0:03:34]} 16. Nc5 {[%emt 0:01:00]} b6 {[%emt 0:02:20]} 17. Na6 {[%emt 0:02:35]} Rac8 {[%emt 0:02:27]} 18. Rc1 {[%emt 0:06:21]} Bg6 {[%emt 0:01:40]} 19. Ke3 {[%emt 0:02:36]} Nd4 {[%emt 0:02:40]} 20. Rc3 {[%emt 0:05:54]} Ne4 {[%emt 0:04:05]} 21. c5 {[%emt 0:02:25]} Nxc3 {[%emt 0:03:56]} 22. Bxc3 {[%emt 0:00:06]} Nc2+ {[%emt 0:00:24]} 23. Kf2 {[%emt 0:00:25]} Bd3 {[%emt 0:02:47]} 24. Bxe5 {[%emt 0:00:31]} bxc5 {[%emt 0:01:12]} 25. Nxc5 {[%emt 0:00:52]} Bxf1 {[%emt 0:00:26]} 26. Rxf1 {[%emt 0:00:07]} f6 {[%emt 0:01:09]} 27. Bf4 {[%emt 0:01:10]} a5 {[%emt 0:04:29]} 28. Nb7 {[%emt 0:01:31]} Rd4 {[%emt 0:02:53]} 29. Be3 {[%emt 0:01:27]} Re4 {[%emt 0:00:55]} 30. Bc1 {[%emt 0:01:30]} axb4 {[%emt 0:00:45]} 31. Nd6 {[%emt 0:00:08]} Rce8 {[%emt 0:00:28]} 32. Nxe8 {[%emt 0:00:35]} Rxe8 {[%emt 0:00:08]} 33. axb4 {[%emt 0:00:08]} Nxb4 {[%emt 0:00:08]} 34. Rd1 {[%emt 0:00:27]} Nc6 {[%emt 0:00:54]} 35. Bf4 {[%emt 0:02:10]} Rd8 {[%emt 0:00:59]} 36. Rxd8+ {[%emt 0:01:29]} Nxd8 {[%emt 0:00:01]} 37. Kf3 {[%emt 0:00:13]} Kf7 {[%emt 0:00:14]} 38. Ke4 {[%emt 0:00:23]} Ke6 {[%emt 0:00:14]} 39. Bc1 {[%emt 0:02:40]} Nf7 {[%emt 0:00:40]} 40. h4 {[%emt 0:05:34]} h5 {[%emt 0:01:04]} 41. Ba3 {[%emt 0:32:07]} Nh6 {[%emt 0:01:49]} 42. g3 {[%emt 0:00:00]} Ng4 {[%emt 0:02:48]} 43. Bc5 {[%emt 0:00:00]} Ne5 {[%emt 0:00:14]} 44. Bd4 {[%emt 0:00:00]} g6 {[%emt 0:02:59]} 45. Bc3 {[%emt 0:00:00]} Nc6 {[%emt 0:01:15]} 46. Kf4 {[%emt 0:00:00]} Ne7 {[%emt 0:00:02]} 47. Bd2 {[%emt 0:00:00]} Nd5+ {[%emt 0:00:15]} 48. Ke4 {[%emt 0:00:00]} f5+ {[%emt 0:09:15]} 49. Kf3 {[%emt 0:00:00]} Ke5 {[%emt 0:01:01]} 50. Bh6 {[%emt 0:00:00]} f4 {[%emt 0:08:29]} 51. gxf4+ {[%emt 0:00:00]} Ke6 {[%emt 0:05:11]} 52. Bg7 {[%emt 0:00:00]} Kf5 {[%emt 0:00:11]} 53. Be5 {[%emt 0:00:00]} Ne7 {[%emt 0:00:50]} 54. Bc3 {[%emt 0:00:44]} Nc6 {[%emt 0:00:19]} 55. Bg7 {[%emt 0:01:30]} Nb4 {[%emt 0:00:14]} 56. Bh6 {[%emt 0:02:45]} Nd5 {[%emt 0:01:12]} 57. Bg5 {[%emt 0:00:07]} Nc7 {[%emt 0:00:11]} 58. Bh6 {[%emt 0:00:57]} Ne6 {[%emt 0:00:16]} 59. Bg5 {[%emt 0:00:52]} Nd4+ {[%emt 0:00:45]} 60. Ke3 {[%emt 0:00:07]} Nb5 {[%emt 0:01:13]} 61. Kf3 {[%emt 0:00:37]} Ke6 {[%emt 0:01:34]} 62. Ke4 {[%emt 0:01:37]} Nd6+ {[%emt 0:00:09]} 63. Ke3 {[%emt 0:04:00]} Kd5 {[%emt 0:00:41]} 64. Kd3 {[%emt 0:06:03]} Ne4 {[%emt 0:01:19]} 65. Be7 {[%emt 0:00:29]} Ng3 {[%emt 0:00:36]} 66. Bg5 {[%emt 0:00:46]} Ke6 {[%emt 0:00:25]} 67. Ke3 {[%emt 0:00:23]} Kd5 {[%emt 0:00:32]} 68. Kd3 {[%emt 0:02:43]} Nf5 {[%emt 0:00:16]} 69. Bd8 {[%emt 0:00:45]} Nd4 {[%emt 0:00:32]} 70. Bg5 {[%emt 0:00:58]} Ne6 {[%emt 0:00:43]} 71. Bh6 {[%emt 0:00:09]} Nc5+ {[%emt 0:00:23]} 72. Ke3 {[%emt 0:00:19]} Ke6 {[%emt 0:00:36]} 73. Kd4 {[%emt 0:00:54]} Nd7 {[%emt 0:00:20]} 74. Ke4 {[%emt 0:01:04]} Nf6+ {[%emt 0:00:02]} 75. Kf3 {[%emt 0:00:21]} Ng4 {[%emt 0:00:57]} 76. Bg5 {[%emt 0:00:21]} Kd5 {[%emt 0:00:06]} 77. Bd8 {[%emt 0:00:38]} Nh6 {[%emt 0:01:06]} 78. Bg5 {[%emt 0:01:17]} Nf5 {[%emt 0:00:06]} 79. Bf6 {[%emt 0:00:09]} Ke6 {[%emt 0:00:52]} 80. Bg5 {[%emt 0:00:47]} Nd6 {[%emt 0:00:10]} 81. Bd8 {[%emt 0:01:39]} Nf7 {[%emt 0:00:16]} 82. Bc7 {[%emt 0:01:00]} Kd5 {[%emt 0:00:35]} 83. Bb6 {[%emt 0:02:02]} Nd6 {[%emt 0:00:30]} 84. Bd8 {[%emt 0:01:03]} Kd4 {[%emt 0:00:55]} 85. Bf6+ {[%emt 0:00:11]} Kd3 {[%emt 0:00:19]} 86. f5 {[%emt 0:00:23]} Nxf5 {[%emt 0:00:40]} 87. Kf4 {[%emt 0:00:03]} Ke2 {[%emt 0:00:34]} 88. Kg5 {[%emt 0:00:09]} Kf3 {[%emt 0:00:07]} 89. Kxg6 {[%emt 0:02:38]} Kg4 {[%emt 0:00:02]} 90. Bd8 {[%emt 0:00:58]} Nxh4+ {[%emt 0:00:08]} 91. Kh6 {[%emt 0:00:13]} Nf5+ {[%emt 0:00:29]} 92. Kg6 {[%emt 0:00:06]} Ne3 {[%emt 0:01:08]} 93. Bf6 {[%emt 0:00:24]} Nd5 {[%emt 0:00:05]} 94. Bd8 {[%emt 0:00:04]} Nf4+ {[%emt 0:00:40]} 95. Kh6 {[%emt 0:00:06]} Ne6 {[%emt 0:00:33]} 96. Bf6 {[%emt 0:00:08]} Nf8 {[%emt 0:00:06]} 97. Be7 {[%emt 0:00:15]} Nd7 {[%emt 0:00:09]} 98. Bd8 {[%emt 0:00:16]} Ne5 {[%emt 0:00:05]} 99. Bf6 {[%emt 0:00:11]} Nf7+ {[%emt 0:00:44]} 100. Kg6 {[%emt 0:00:09]} Nd6 {[%emt 0:00:32]} 101. Kh6 {[%emt 0:00:18]} Nf5+ {[%emt 0:00:24]} 102. Kg6 {[%emt 0:00:07]} Ne3 {[%emt 0:00:39]} 103. Be7 {[%emt 0:00:27]} Nd5 {[%emt 0:00:06]} 104. Bd8 {[%emt 0:00:10]} Nf4+ {[%emt 0:00:01]} 105. Kh6 {[%emt 0:00:14]} Kf5 {[%emt 0:00:09]} 106. Bg5 {[%emt 0:00:31]} 1/2-1/2